bitfinex-derivatives/quotes_ETHF0:USTF0_20250626
["timestamp","ask_amount","ask_price","bid_price","bid_amount"]
[1750918733569,0.80517,2482.8,2482.7,1.22681719]
[1750918734570,2.22586,2482.9,2482.7,1.22681719]
[1750918735170,0.80517,2482.8,2482.7,1.22681719]
[1750918735370,0.80517,2482.8,2482.7,1.39291719]
[1750918736471,0.80517,2482.8,2482.7,0.1951]
[1750918737170,2.24707,2482.8,2482.7,0.1951]
[1750918739673,2.24707,2482.8,2482.7,0.1661]
[1750918745377,8.82207,2482.8,2482.7,0.1661]
[1750918748877,8.0169,2482.8,2482.6,1e-05]
[1750918749082,2.01315,2482.6,2481.9,1.87021719]
[1750918749274,2.01315,2482.6,2481.7,1.19781719]
[1750918749275,0.8055,2481.8,2481.7,1.19781719]
[1750918749475,2.56664652,2482.0,2481.6,5.05901719]
[1750918749779,0.7099,2481.9,2481.6,5.05901719]
[1750918749974,2.0591,2481.9,2481.6,5.05901719]
[1750918750482,0.8055,2481.8,2481.6,5.05901719]
[1750918750878,0.8055,2481.8,2481.7,1.19781719]
[1750918751384,0.8055,2481.8,2481.6,5.05901719]
[1750918751687,0.80553,2481.7,2481.6,5.05901719]
[1750918752980,0.80553,2481.7,2481.6,3.8612]
[1750918753682,0.8056,2481.5,2481.4,1.19781719]
[1750918753877,0.8056,2481.5,2481.4,1.91991719]
[1750918754277,0.80558,2481.6,2481.4,1.91991719]
[1750918754483,0.80554,2481.7,2481.4,1.91991719]
[1750918754683,0.80554,2481.7,2481.4,2.72554719]
[1750918754883,11.1391,2481.9,2481.5,1.19781719]
[1750918754884,0.80558,2481.6,2481.5,1.19781719]
[1750918755478,0.80558,2481.6,2481.4,3.25681719]
[1750918755679,0.8056,2481.5,2481.4,3.25681719]
[1750918756485,0.8056,2481.5,2481.4,1.91991719]
[1750918758384,0.8056,2481.5,2481.4,0.7221]
[1750918758685,0.80559,2481.6,2481.4,0.7221]
[1750918758880,0.80559,2481.6,2481.4,1.52772]
[1750918759389,0.80555,2481.7,2481.4,1.52772]
[1750918761487,0.80555,2481.7,2481.5,0.80558]
[1750918762677,0.80556,2481.6,2481.4,1.5277]
[1750918762881,0.80555,2481.7,2481.5,0.8056]
[1750918763692,0.80555,2481.7,2481.6,0.80556]
[1750918764385,4.71797652,2481.8,2481.6,0.80555]
[1750918764687,0.80546,2482.0,2481.8,0.8055]
[1750918764991,7.36042,2482.1,2481.9,1.52447]
[1750918765485,6.555,2482.1,2482.0,0.80543]
[1750918765890,7.3604,2482.1,2481.9,1.52445]
[1750918767387,0.80543,2482.0,2481.9,0.719]
[1750918767587,7.36042,2482.1,2481.9,1.52445]
[1750918768390,5.77444652,2482.2,2481.9,1.52445]
[1750918768391,4.01318,2482.2,2481.9,1.52445]
[1750918768579,4.01318,2482.2,2482.0,0.80543]
[1750918769194,0.80538,2482.2,2482.0,0.80543]
[1750918769489,4.05919652,2482.3,2482.0,0.80543]
[1750918769690,0.80537,2482.2,2482.0,0.80543]
[1750918769890,3.25384652,2482.3,2482.0,0.80543]
[1750918770091,3.25384652,2482.3,2481.9,3.9268]
[1750918770392,0.80543,2482.0,2481.9,3.9268]
[1750918770589,0.80541,2482.1,2481.9,4.73225]
[1750918770793,0.80538,2482.2,2482.0,0.80543]
[1750918772094,3.25384652,2482.3,2481.9,5.3122]
[1750918772295,0.80538,2482.2,2482.0,0.80542]
[1750918772596,9.7628,2482.6,2482.0,1.19781719]
[1750918772794,0.80538,2482.2,2482.0,2.00323719]
[1750918773294,0.80536,2482.3,2482.1,0.8054]
[1750918774090,0.80537,2482.2,2482.0,2.00323719]
[1750918774289,0.80537,2482.2,2482.1,1.19781719]
[1750918775496,0.80536,2482.3,2482.1,2.00321719]
[1750918775893,0.80532,2482.4,2482.1,1.19781719]
[1750918776193,0.80529,2482.5,2482.3,0.80531]
[1750918776398,0.80529,2482.5,2482.4,1.4644]
[1750918776593,7.36026,2482.6,2482.4,1.4644]
[1750918776798,0.80527,2482.5,2482.4,0.6591]
[1750918777704,6.555,2482.6,2482.5,0.80527]
[1750918777999,0.80527,2482.5,2482.4,0.6591]
[1750918778599,7.36026,2482.6,2482.4,0.6591]
[1750918779201,0.80527,2482.5,2482.4,0.6591]
[1750918780200,2.20747,2482.5,2482.4,0.6591]
[1750918780397,6.555,2482.6,2482.5,0.80527]
[1750918780598,1.49972,2482.7,2482.5,4.01307]
[1750918782702,1.49972,2482.7,2482.6,0.80524]
[1750918782703,0.6945,2482.7,2482.6,0.80524]
[1750918783597,1.49971,2482.7,2482.6,0.80524]
[1750918783800,1.49971,2482.7,2482.5,4.01305]
[1750918785005,0.80524,2482.6,2482.5,4.01305]
[1750918785206,0.80524,2482.6,2482.5,3.2078]
[1750918785508,0.6945,2482.7,2482.2,2.90566775]
[1750918785509,0.8053,2482.4,2482.2,5.21096719]
[1750918785700,3.26114652,2482.7,2482.2,5.21096719]
[1750918785701,4.80233652,2482.5,2482.3,0.80534]
[1750918786002,1.4304,2482.5,2482.4,0.8053]
[1750918786210,0.6715,2482.6,2482.5,0.80527]
[1750918786403,1.49972,2482.7,2482.5,3.2078]
[1750918787101,1.49972,2482.7,2482.5,4.01305]
[1750918788399,0.80524,2482.6,2482.5,4.01305]
[1750918788695,0.8053,2482.4,2482.3,1.19781719]
[1750918789310,0.8053,2482.4,2482.0,3.05790709]
[1750918789311,0.80537,2482.2,2482.1,1.19781719]
[1750918789503,0.80543,2482.1,2481.9,1.19781719]
[1750918789807,0.80543,2482.0,2481.9,1.19781719]
[1750918790410,2.24073,2482.0,2481.8,5.61226775]
[1750918790906,1.4353,2482.0,2481.9,0.80547]
[1750918791704,1.4353,2482.0,2481.8,4.80676775]
[1750918791705,2.24073,2482.0,2481.8,5.61224775]
[1750918792204,2.24073,2482.0,2481.9,1.59896775]
[1750918792404,2.24073,2482.0,2481.8,5.61224775]
[1750918793301,2.24073,2482.0,2481.9,1.59896775]
[1750918793898,2.24073,2482.0,2481.9,4.80676775]
[1750918795511,1.4353,2482.0,2481.9,5.61223775]
[1750918795710,1.48142,2482.1,2481.9,5.61223775]
[1750918796009,0.7114,2482.3,2481.9,5.61223775]
[1750918796010,2.0619,2482.3,2482.0,1.59896775]
[1750918796205,0.80538,2482.2,2482.1,1.8614966]
[1750918796511,0.80538,2482.2,2482.1,2.6668966]
[1750918796714,2.86725,2482.3,2482.1,2.6668966]
[1750918797611,0.80537,2482.2,2482.1,1.8614966]
[1750918798207,2.86725,2482.3,2482.1,1.4658]
[1750918798416,2.86725,2482.3,2482.2,1.20195587]
[1750918799013,6.531,2482.4,2482.2,5.21512587]
[1750918799014,0.80532,2482.4,2482.2,5.21512587]
[1750918800208,0.80534,2482.3,2482.2,4.40975587]
[1750918800511,0.80534,2482.3,2482.2,5.21522946]
[1750918800709,0.80534,2482.3,2482.2,4.40984541]
[1750918800901,0.80534,2482.3,2482.2,3.2078]
[1750918801515,0.80532,2482.4,2482.2,4.01315]
[1750918801716,0.80532,2482.4,2482.3,1.2021787]
[1750918803014,2.23212,2482.4,2482.3,1.2021787]
[1750918805216,1.4268,2482.4,2482.1,1.2021787]
[1750918805423,3.37201652,2482.2,2482.1,1.2021787]
[1750918805622,0.80537,2482.2,2482.1,1.2021787]
[1750918805931,0.80537,2482.2,2482.1,1.59896775]
[1750918809332,2.56664652,2482.7,2482.1,1.59896775]
[1750918809630,0.80527,2482.5,2482.4,1.59896775]
[1750918811237,2.14467,2482.5,2482.4,1.59896775]
[1750918811423,0.8053,2482.4,2482.3,4.80676775]
[1750918811624,2.1447,2482.4,2482.3,4.80676775]
[1750918812234,2.1447,2482.4,2482.3,4.40963934]
[1750918813331,2.1447,2482.4,2482.3,1.20183934]
[1750918814125,2.1447,2482.4,2482.0,5.56350709]
[1750918814126,6.3394,2482.4,2482.0,3.2078]
[1750918814324,0.8054,2482.1,2482.0,3.2078]
[1750918814727,0.8054,2482.1,2481.9,1.20183934]
[1750918814728,0.80543,2482.0,2481.9,1.20183934]
[1750918815235,4.81107652,2482.0,2481.9,1.20183934]
[1750918815434,0.80547,2481.9,2481.8,1.20183934]
[1750918815636,2.24447,2481.9,2481.8,1.20183934]
[1750918815933,0.8055,2481.8,2481.7,4.40963934]
[1750918816137,4.68924652,2481.8,2481.7,4.40963934]
[1750918816533,4.68924652,2481.8,2481.7,1.20183934]
[1750918817028,2.1226,2481.8,2481.7,1.20183934]
[1750918817236,0.8055,2481.8,2481.7,1.20183934]
[1750918817434,0.8055,2481.8,2481.7,1.20207568]
[1750918817634,0.8055,2481.8,2481.6,2.30676775]
[1750918817934,0.80553,2481.7,2481.6,2.30676775]
[1750918818139,0.80553,2481.7,2481.6,0.7078]
[1750918822332,0.80556,2481.6,2481.5,2.35570709]
[1750918822629,0.8056,2481.5,2481.4,6.22720709]
[1750918822834,0.8056,2481.5,2481.4,3.8715]
[1750918823231,0.8056,2481.5,2481.4,5.47478952]
[1750918823430,2.1593,2481.5,2481.4,5.07364105]
[1750918823631,2.1593,2481.5,2481.4,4.40994105]
[1750918824745,2.1593,2481.5,2481.4,3.2078]
[1750918824930,2.1593,2481.5,2481.4,4.40994105]
[1750918825131,2.1593,2481.5,2481.4,3.2078]
[1750918828441,0.80566,2481.3,2481.2,1.87494105]
[1750918830537,0.80569,2481.2,2481.1,4.40994105]
[1750918830737,1.49009,2481.2,2481.1,4.40994105]
[1750918832243,8.52388,2481.7,2481.1,4.40994105]
[1750918832244,0.80556,2481.7,2481.1,4.40994105]
[1750918832547,7.31556,2481.7,2481.5,4.01339]
[1750918832747,7.31556,2481.7,2481.6,0.6584]
[1750918833245,6.51,2481.7,2481.6,0.6584]
[1750918833434,5.36905,2482.0,2481.7,0.80551]
[1750918833638,4.01325,2482.0,2481.7,0.80553]
[1750918833835,4.01325,2482.0,2481.8,0.8055]
[1750918834642,3.2078,2482.0,2481.9,0.80547]
[1750918835746,4.01323,2482.0,2481.8,0.80548]
[1750918835944,0.80543,2482.0,2481.8,0.80548]
[1750918836348,6.51,2482.1,2481.7,2.64408444]
[1750918836551,0.80545,2482.0,2481.8,0.80548]
[1750918836948,7.31542,2482.1,2481.9,0.80547]
[1750918837150,7.31542,2482.1,2482.0,0.701]
[1750918837845,4.02853652,2482.2,2482.0,1.50642]
[1750918838147,0.6565,2482.2,2482.1,0.8054]
[1750918839239,8.62026,2482.3,2482.0,0.701]
[1750918839444,7.8149,2482.3,2482.0,0.701]
[1750918839749,8.62025,2482.3,2482.1,0.80538]
[1750918841251,0.80538,2482.2,2482.0,1.50642]
[1750918842352,0.80538,2482.2,2482.1,0.8054]
[1750918842853,0.80538,2482.2,2482.0,1.50641]
[1750918843147,0.8054,2482.1,2482.0,0.701]
[1750918843347,2.8096,2482.1,2482.0,0.701]
[1750918843745,0.80543,2482.0,2481.9,1.20048444]
[1750918843945,2.12523,2482.0,2481.9,1.20048444]
[1750918845654,0.80543,2482.0,2481.9,1.20048444]
[1750918846048,0.80543,2482.0,2481.9,2.00595444]
[1750918846355,0.80543,2482.0,2481.9,1.20048444]
[1750918846555,0.80543,2482.0,2481.9,2.00595444]
[1750918846746,0.80543,2482.0,2481.9,1.20048444]
[1750918848256,0.80543,2482.0,2481.9,2.00595444]
[1750918848457,0.80543,2482.0,2481.9,1.20048444]
[1750918849760,1.45812,2482.1,2481.9,1.20048444]
[1750918849966,1.45812,2482.1,2482.0,0.80543]
[1750918850160,0.6527,2482.1,2482.0,0.80543]
[1750918850555,0.80538,2482.2,2482.1,0.8054]
[1750918850956,0.80538,2482.2,2482.1,1.4774]
[1750918851162,8.02146,2482.3,2482.1,1.4774]
[1750918851960,0.80537,2482.2,2482.1,0.672]
[1750918854663,8.02146,2482.3,2482.1,1.4774]
[1750918855357,0.80537,2482.2,2482.1,0.672]
[1750918857163,8.02146,2482.3,2482.1,1.4774]
[1750918857663,0.80537,2482.2,2482.1,1.4774]
[1750918858164,0.80537,2482.2,2482.1,0.672]
[1750918859363,0.80537,2482.2,2482.1,1.87248444]
[1750918860266,0.80537,2482.2,2482.1,0.672]
[1750918860567,0.80537,2482.2,2482.1,1.87248444]
[1750918860766,3.37201652,2482.2,2482.1,1.20048444]
[1750918860959,3.37201652,2482.2,2481.9,1.20048444]
[1750918860960,3.91494652,2482.2,2481.9,1.20048444]
[1750918861156,2.56664652,2482.0,2481.9,1.20048444]
[1750918861666,3.37207652,2482.0,2481.9,1.20048444]
[1750918861961,0.80547,2481.9,2481.8,4.40828444]
[1750918862162,9.2817,2481.9,2481.6,1.20048444]
[1750918862361,0.80556,2481.6,2481.5,3.2078]
[1750918862554,0.8056,2481.5,2481.4,1.20048444]
[1750918862760,0.8056,2481.5,2481.2,1.20048444]
[1750918862761,0.80566,2481.3,2481.2,1.20048444]
[1750918862963,0.80569,2481.2,2481.1,4.40828444]
[1750918863160,2.22789,2481.2,2481.1,4.40828444]
[1750918863866,2.22789,2481.2,2481.1,3.2078]
[1750918866271,0.80579,2480.9,2480.8,1.20048444]
[1750918866568,0.80582,2480.8,2480.7,4.40828444]
[1750918866964,1.5001,2480.9,2480.7,4.40828444]
[1750918867269,0.6943,2480.9,2480.8,1.20048444]
[1750918867568,0.6943,2480.9,2480.7,4.40828444]
[1750918867869,1.50009,2480.9,2480.7,4.40828444]
[1750918868270,0.6943,2480.9,2480.7,4.40828444]
[1750918868469,0.6943,2480.9,2480.7,5.21414444]
[1750918868768,1.50009,2480.9,2480.7,5.21414444]
[1750918869969,7.29574,2481.1,2480.9,0.80577]
[1750918870169,7.29574,2481.1,2481.0,0.6763]
[1750918870462,6.49,2481.1,2481.0,0.6763]
[1750918870666,7.29573,2481.1,2481.0,0.6763]
[1750918871075,6.49,2481.1,2481.0,1.48206]
[1750918871569,1.49577,2481.3,2481.1,0.80571]
[1750918871765,7.1761,2481.4,2481.0,6.45074652]
[1750918871966,0.80567,2481.3,2481.2,3.2078]
[1750918872265,1.49174,2481.4,2481.2,4.01349]
[1750918872674,0.80564,2481.4,2481.2,4.01349]
[1750918873570,7.9053,2481.7,2481.3,0.80566]
[1750918873766,0.80558,2481.6,2481.4,0.80563]
[1750918873967,9.2607,2481.7,2481.4,0.80563]
[1750918873968,10.06625,2481.7,2481.4,0.80563]
[1750918874770,0.80556,2481.6,2481.4,0.80563]
[1750918875262,0.80556,2481.6,2481.3,0.80564]
[1750918875468,0.8056,2481.5,2481.2,7.09504652]
[1750918875976,0.8056,2481.5,2481.3,0.80564]
[1750918876576,0.80558,2481.6,2481.4,0.80563]
[1750918877773,0.80558,2481.6,2481.5,3.9181]
[1750918878075,9.2607,2481.7,2481.5,4.7237]
[1750918878076,10.06625,2481.7,2481.5,4.7237]
[1750918878376,0.80556,2481.6,2481.5,3.9181]
[1750918878778,2.24056,2481.6,2481.5,3.2078]
[1750918880986,1.3623,2481.8,2481.5,3.2078]
[1750918881173,2.16782,2481.8,2481.6,0.80556]
[1750918881374,0.6554,2481.8,2481.6,0.655]
[1750918881579,1.46091,2481.8,2481.6,0.655]
[1750918881775,1.4236,2482.1,2481.6,3.22164652]
[1750918882080,0.6668,2482.0,2481.9,0.80547]
[1750918882782,0.6668,2482.0,2481.6,3.22164652]
[1750918882783,1.47223,2482.0,2481.8,0.80548]
[1750918882984,0.6668,2482.0,2481.6,0.655]
[1750918883184,0.80549,2481.9,2481.7,0.80552]
[1750918883379,0.8055,2481.8,2481.6,1.46055]
[1750918885183,0.80553,2481.7,2481.6,0.655]
[1750918886085,0.80553,2481.7,2481.6,0.67494604]
[1750918888175,2.11543,2481.7,2481.6,0.67494604]
[1750918890180,4.68207652,2481.7,2481.6,0.01994604]
[1750918890484,11.15207652,2481.7,2481.6,0.01994604]
[1750918891179,8.58543,2481.7,2481.6,0.01994604]
[1750918891783,0.80553,2481.7,2481.6,0.01994604]
[1750918891982,4.68632,2481.8,2481.6,0.01994604]
[1750918892184,0.80553,2481.7,2481.6,0.01994604]
[1750918894891,4.68631,2481.8,2481.6,0.82549604]
[1750918895192,6.01041,2481.8,2481.7,0.01994604]
[1750918898895,2.80261,2481.8,2481.7,0.01994604]
[1750918900095,5.36925652,2481.8,2481.7,0.01994604]
[1750918901392,5.36925652,2481.8,2481.7,6.04e-06]
[1750918901393,10.36925652,2481.8,2481.7,6.04e-06]
[1750918901595,0.80566,2481.3,2481.2,1.19779558]
[1750918901797,3.37230652,2481.3,2481.2,1.19779558]
[1750918902291,0.80569,2481.2,2481.1,3.2078]
[1750918902499,0.80573,2481.1,2481.0,1.19779558]
[1750918902702,0.80576,2481.0,2480.9,1.19779558]
[1750918903005,2.10846,2481.0,2480.9,1.19779558]
[1750918903808,0.80576,2481.0,2480.9,1.19779558]
[1750918904703,2.13886,2481.0,2480.9,1.19779558]
[1750918906505,0.80579,2480.9,2480.8,4.40559558]
[1750918907604,1.3331,2481.0,2480.8,4.40559558]
[1750918907805,0.80579,2480.9,2480.8,4.40559558]
[1750918908304,0.80579,2480.9,2480.8,4.40879325]
[1750918910507,0.7025,2481.3,2480.8,10.21460325]
[1750918910816,0.80576,2481.0,2480.8,5.21460325]
[1750918913110,0.80579,2480.9,2480.8,5.21460325]
[1750918913311,0.80578,2481.0,2480.8,5.21461325]
[1750918913706,0.80579,2480.9,2480.8,4.40879325]
[1750918915610,0.80586,2480.7,2480.6,1.20099325]
[1750918915801,0.80592,2480.5,2480.4,1.20099325]
[1750918916007,0.80595,2480.4,2480.3,1.20099325]
[1750918916306,0.80592,2480.5,2480.3,1.20099325]
[1750918916709,0.80595,2480.4,2480.3,1.20099325]
[1750918917505,0.80595,2480.4,2480.2,1.86479325]
[1750918917705,2.1007,2480.6,2480.2,1.86479325]
[1750918918108,0.80599,2480.3,2480.2,1.86479325]
[1750918918509,0.80599,2480.3,2480.2,0.6638]
[1750918918910,0.80602,2480.2,2480.1,3.2078]
[1750918919224,4.07206652,2480.2,2480.1,3.2078]
[1750918919714,5.46196652,2480.2,2480.1,3.2078]
[1750918922512,6.455,2480.6,2480.1,4.01384]
[1750918922717,0.80599,2480.3,2480.2,0.7077]
[1750918923117,2.56664652,2480.5,2480.1,3.2078]
[1750918923323,0.80602,2480.2,2480.1,3.2078]
[1750918923821,2.91542,2480.2,2480.1,3.2078]
[1750918924622,1.49962,2480.2,2480.1,3.2078]
[1750918926621,0.6936,2480.2,2480.1,3.2078]
[1750918926822,0.80602,2480.2,2480.1,3.2078]
[1750918935430,1.46452,2480.2,2480.1,3.2078]
[1750918935634,2.18222,2480.2,2480.1,3.2078]
[1750918935927,4.74886652,2480.2,2480.1,3.2078]
[1750918936729,0.80608,2480.0,2479.9,0.7077]
[1750918940431,0.80608,2480.0,2479.9,1.90869325]
[1750918943541,0.80608,2480.0,2479.9,0.7077]
[1750918944338,0.80608,2480.0,2479.9,2.31098952]
[1750918946439,0.80608,2480.0,2479.9,0.7077]
[1750918947142,0.80608,2480.0,2479.9,3.9155]
[1750918948341,0.80608,2480.0,2479.9,6.27120709]
[1750918950638,0.80608,2480.0,2479.9,3.9155]
[1750918951342,3.37272652,2480.0,2479.9,1.60593201]
[1750918951543,3.37272652,2480.0,2479.9,1.20465095]
[1750918951744,0.80612,2479.9,2479.8,1.20465095]
[1750918951943,2.22942,2479.9,2479.8,1.20465095]
[1750918952344,0.80618,2479.7,2479.6,4.41245095]
[1750918952546,3.37282652,2479.7,2479.6,4.41245095]
[1750918952742,0.80618,2479.7,2479.6,4.41245095]
[1750918952942,2.22948,2479.7,2479.6,4.41245095]
[1750918953144,2.92208,2479.7,2479.6,4.41245095]
[1750918954239,2.92208,2479.7,2479.6,3.2078]
[1750918954750,5.48872652,2479.7,2479.6,3.2078]
[1750918957847,0.80618,2479.7,2479.6,3.2078]
[1750918958243,0.80618,2479.7,2479.6,3.8906]
[1750918958447,7.96967,2479.8,2479.6,3.8906]
[1750918959047,0.80618,2479.7,2479.6,3.8906]
[1750918959244,2.0549,2480.1,2479.6,3.8906]
[1750918959245,1.4401,2480.0,2479.6,3.8906]
[1750918959440,2.0969,2480.0,2479.6,5.77545095]
[1750918959641,2.0969,2480.0,2479.8,0.80613]
[1750918959642,1.4629,2480.0,2479.8,0.80613]
[1750918959951,6.445,2480.8,2479.9,3.2078]
[1750918960246,6.445,2480.8,2480.3,4.40998927]
[1750918960247,0.80595,2480.4,2480.3,4.40998927]
[1750918960742,0.80594,2480.5,2480.3,4.40976032]
[1750918961048,0.80594,2480.5,2480.3,5.21575032]
[1750918961345,0.80594,2480.5,2480.4,0.6822]
[1750918963750,0.80594,2480.5,2480.3,4.40976032]
[1750918963751,0.80595,2480.4,2480.3,4.40976032]
[1750918963951,1.48815,2480.4,2480.3,4.40976032]
[1750918964544,3.24884652,2480.4,2480.0,4.40976032]
[1750918964746,3.37269652,2480.1,2480.0,3.2078]
[1750918965654,0.80605,2480.1,2480.0,3.2078]
[1750918965858,4.54804652,2480.3,2480.0,3.2078]
[1750918965859,0.80604,2480.2,2480.0,3.2078]
[1750918966045,0.80604,2480.2,2480.0,4.40976032]
[1750918966852,4.54804652,2480.3,2480.0,4.40976032]
[1750918967054,0.80605,2480.2,2480.0,4.40976032]
[1750918967752,0.80605,2480.1,2480.0,4.40976032]
[1750918967948,0.80603,2480.2,2480.0,4.40976032]
[1750918968156,0.80603,2480.2,2480.0,5.21584032]
[1750918968456,0.80603,2480.2,2480.0,4.40976032]
[1750918968653,0.80605,2480.1,2480.0,4.40976032]
[1750918971054,11.04394652,2480.4,2480.0,4.40976032]
[1750918971254,0.80603,2480.2,2480.0,5.21581032]
[1750918971558,0.80601,2480.3,2480.1,0.80605]
[1750918971756,0.80601,2480.3,2480.2,0.6606]
[1750918972749,0.80601,2480.3,2480.2,1.46662]
[1750918972949,0.80601,2480.3,2480.2,0.6606]
[1750918973768,8.4773,2480.4,2480.2,1.46662]
[1750918973769,1.48818,2480.4,2480.2,1.46662]
[1750918974050,0.8059,2480.6,2480.3,3.2078]
[1750918974257,0.80585,2480.8,2480.3,6.97640684]
[1750918974858,0.80586,2480.7,2480.5,0.8059]
[1750918975050,0.80586,2480.7,2480.6,0.654]
[1750918975350,0.80586,2480.7,2480.6,1.45989]
[1750918975559,9.6398,2480.9,2480.6,1.45989]
[1750918975750,0.80585,2480.8,2480.6,1.45989]
[1750918975951,9.6398,2480.9,2480.6,1.45989]
[1750918976245,0.80586,2480.7,2480.6,0.654]
[1750918981058,24.06761733,2487.2,2480.6,3.8618]
[1750918981059,6.431,2481.2,2480.6,3.8618]
[1750918981356,6.431,2481.2,2481.0,0.80576]
[1750918981357,0.80571,2481.2,2481.0,0.80576]
[1750918981560,0.80571,2481.2,2481.1,0.6741]
[1750918984557,1.50279,2481.3,2481.1,1.47983]
[1750918984752,0.80569,2481.2,2481.1,0.6741]
[1750918985761,5.3073,2481.5,2481.1,1.47981]
[1750918985957,1.52115,2481.4,2481.1,1.47981]
[1750918986461,1.52115,2481.4,2481.2,0.80569]
[1750918987153,3.2078,2481.8,2481.3,2.56664652]
[1750918987458,1.47262,2481.8,2481.6,0.80555]
[1750918988055,0.6671,2481.8,2481.7,0.80553]
[1750918988355,1.4726,2481.8,2481.6,0.80554]
[1750918988567,1.4726,2481.8,2481.7,0.7199]
[1750918988767,2.8157,2481.8,2481.7,0.7199]
[1750918989256,2.0102,2481.8,2481.7,1.52543]
[1750918989562,2.8157,2481.8,2481.7,0.7199]
[1750918990055,2.8157,2481.8,2481.7,1.52543]
[1750918990264,2.0102,2481.8,2481.7,1.52543]
[1750918991061,0.6671,2481.8,2481.7,1.52543]
[1750918991450,7.23646,2482.0,2481.8,0.8055]
[1750918991659,7.92786,2482.0,2481.8,0.8055]
[1750918991959,7.92786,2482.0,2481.7,0.7199]
[1750918991960,0.80547,2481.9,2481.7,1.52541]
[1750918992164,0.8055,2481.8,2481.7,0.7199]
[1750918992459,0.80549,2481.9,2481.7,1.52543]
[1750918992659,0.8055,2481.8,2481.7,0.7199]
[1750918992961,0.80548,2481.9,2481.7,1.52543]
[1750918993555,0.8055,2481.8,2481.7,0.7199]
[1750918995765,0.80556,2481.6,2481.5,3.2374]
[1750918995958,3.37220652,2481.6,2481.5,3.2374]
[1750918996356,5.35780652,2481.6,2481.5,3.2374]
[1750918998657,0.80551,2481.8,2481.5,4.04298]
[1750918998858,1.51921,2481.8,2481.5,4.04298]
[1750918999058,2.84781,2481.8,2481.6,0.6633]
[1750918999360,2.84781,2481.8,2481.6,1.46886]
[1750918999763,2.0423,2481.8,2481.7,0.80553]
[1750919000063,0.7137,2481.8,2481.7,0.80553]
[1750919002064,1.47394,2482.0,2481.9,0.80547]
[1750919002362,2.19084,2482.0,2481.9,0.80547]
[1750919002563,3.60734,2482.0,2481.9,0.80547]
[1750919002755,2.8019,2482.0,2481.9,0.80547]
[1750919004766,6.417,2482.2,2482.1,0.8054]
[1750919004966,7.1057,2482.2,2482.1,0.8054]
[1750919005563,8.5513,2482.2,2482.1,0.8054]
[1750919006561,2.1343,2482.2,2482.1,0.8054]
[1750919006871,0.80541,2482.1,2481.9,0.80545]
[1750919007168,4.81765652,2482.1,2481.9,0.80545]
[1750919007570,1.4456,2482.0,2481.9,0.80545]
[1750919008574,1.4456,2482.0,2481.7,0.80551]
[1750919008869,4.07092652,2481.9,2481.7,0.80551]
[1750919009070,3.37206652,2482.1,2481.6,7.0793]
[1750919009267,3.37206652,2482.1,2481.9,0.80546]
[1750919009572,1.4343,2482.0,2481.9,0.80546]
[1750919010064,0.6887,2482.2,2482.1,0.8054]
[1750919010571,1.49408,2482.2,2482.0,0.80542]
[1750919010768,2.92838,2482.2,2482.0,0.80542]
[1750919011281,1.3184,2482.1,2482.0,0.8054]
[1750919011968,0.6887,2482.2,2482.1,0.8054]
[1750919014470,4.62024652,2482.2,2482.0,0.169]
[1750919014771,5.42563652,2482.2,2482.0,0.97442]
[1750919014976,2.1703,2482.1,2482.0,0.169]
[1750919015476,1.3649,2482.1,2482.0,0.97443]
[1750919015678,0.6887,2482.2,2482.1,0.8054]
[1750919016076,0.6887,2482.2,2482.1,1.4813]
[1750919017172,0.6988,2482.3,2482.1,0.6759]
[1750919017378,0.6988,2482.3,2482.2,0.80537]
[1750919018379,4.5727,2482.5,2482.4,0.8053]
[1750919019074,3.9274,2482.8,2482.4,3.2078]
[1750919019269,3.9274,2482.8,2482.5,1.47945]
[1750919019471,5.2635,2482.8,2482.5,0.6742]
[1750919019767,2.14134,2482.7,2482.5,1.47947]
[1750919020169,0.6615,2482.6,2482.5,1.47947]
[1750919020474,3.9274,2482.8,2482.5,0.6742]
[1750919020777,3.9274,2482.8,2482.7,0.80521]
[1750919020778,4.5889,2482.8,2482.7,0.80521]
[1750919021679,0.8053,2482.4,2482.2,0.80536]
[1750919021878,0.6615,2482.3,2482.2,0.80536]
[1750919025179,1.46684,2482.3,2482.2,0.80536]
[1750919025381,1.46687,2482.3,2482.1,0.717]
[1750919025578,0.80537,2482.2,2482.1,1.52239]
[1750919025778,0.80537,2482.2,2482.1,1.55209]
[1750919025981,1.46686,2482.3,2482.1,1.55209]
[1750919027379,0.80537,2482.2,2482.1,4.04289]
[1750919028281,1.46686,2482.3,2482.1,4.04289]
[1750919028978,1.3748,2482.2,2482.1,4.04289]
[1750919031083,1.46686,2482.3,2482.1,4.04289]
[1750919031479,1.46686,2482.3,2482.2,1.52587]
[1750919033185,1.46686,2482.3,2482.2,0.7205]
[1750919033583,1.46686,2482.3,2482.2,1.52587]
[1750919034679,1.46686,2482.3,2482.2,0.7205]
[1750919035383,1.46686,2482.3,2482.2,1.52587]
[1750919036187,1.46686,2482.3,2482.2,0.7205]
[1750919037378,0.80537,2482.2,2482.1,3.2375]
[1750919037580,0.80537,2482.2,2482.1,0.0297]
[1750919037779,14.27857,2482.2,2482.1,0.0297]
[1750919037976,9.27857,2482.2,2482.1,0.0297]
[1750919039088,2.87457,2482.2,2482.1,0.0297]
[1750919043186,2.0692,2482.2,2482.1,0.0297]
[1750919043392,2.87457,2482.2,2482.1,0.0297]
[1750919046794,0.80537,2482.2,2482.1,0.0297]
[1750919047191,3.22814652,2482.3,2482.1,0.0297]
[1750919047192,4.03350652,2482.3,2482.1,0.8351]
[1750919047494,0.80537,2482.2,2482.0,1.68221]
[1750919047694,2.78646,2482.3,2482.1,0.8054]
[1750919048998,0.80537,2482.2,2482.1,0.8054]
[1750919049496,0.80537,2482.2,2482.0,1.68221]